bitfinex/quotes_ETHUSD_20220212
["timestamp","ask_amount","ask_price","bid_price","bid_amount"]
[1644648474784,0.1738,2892.8,2892.1,0.413]
[1644648474785,0.1728,2892.8,2892.1,0.413]
[1644648474981,0.00364808,2893.5,2892.3,3.4]
[1644648475181,0.00464808,2893.6,2892.6,0.86406]
[1644648475380,0.001,2893.9,2892.8,0.8639139]
[1644648475587,0.001,2894.3,2892.9,4.6005963]
[1644648475786,0.00841772,2893.2,2893.0,1.72776]
[1644648475986,1.772e-05,2893.2,2893.1,4.66595755]
[1644648476190,0.00464808,2894.3,2893.2,3.4]
[1644648476386,0.00364808,2894.5,2893.3,6.03517025]
[1644648476588,0.62224003,2894.8,2893.5,0.05]
[1644648476790,0.62224003,2894.8,2893.6,0.5856]
[1644648476791,0.00364808,2894.8,2893.6,0.5856]
[1644648476988,0.00364808,2894.8,2893.7,6.38345861]
[1644648477191,0.00364808,2894.8,2894.3,0.59659216]
[1644648477399,0.001,2894.9,2894.4,0.413]
[1644648477794,0.5693506,2894.9,2894.4,0.413]
[1644648478060,4.95,2894.7,2894.4,0.413]
[1644648478260,4.95,2894.7,2893.8,1.72724]
[1644648478261,0.5693506,2894.9,2893.7,0.413]
[1644648478262,0.1726,2894.9,2893.7,0.413]
[1644648478459,0.1726,2894.9,2893.5,0.25]
[1644648478460,4.95,2893.8,2893.5,0.25]
[1644648478660,0.1726,2894.6,2892.2,0.1726]
[1644648478661,4.95,2893.6,2892.8,0.62173123]
[1644648478862,0.17644808,2893.7,2892.7,1.72814]
[1644648479161,0.00364808,2893.5,2892.8,0.413]
[1644648479362,0.00364808,2893.7,2892.8,0.5856]
[1644648479562,4.95,2893.9,2892.9,0.86409]
[1644648479761,0.71512381,2893.8,2893.0,0.5858]
[1644648479963,4.95,2893.9,2893.0,0.5858]
[1644648479964,4.95364808,2893.9,2893.0,0.5858]
[1644648480162,4.95364808,2893.9,2893.2,1.72782]
[1644648480163,0.00364808,2893.9,2893.2,1.72782]
[1644648480361,0.1728,2894.9,2893.3,0.413]
[1644648480362,4.95,2894.1,2893.3,0.413]
[1644648480563,4.95,2894.1,2893.3,0.713]
[1644648480761,0.00842049,2893.8,2893.4,0.86389]
[1644648480963,0.00842049,2893.8,2893.5,1.04471944]
[1644648481163,0.00842049,2893.8,2893.6,0.1726]
[1644648481361,0.00842049,2893.8,2893.7,0.413]
[1644648481561,4.95,2894.9,2893.7,0.413]
[1644648481562,4.95364808,2894.9,2893.7,0.413]
[1644648481790,0.00364808,2894.9,2893.8,2.02731]
[1644648481989,0.03367634,2894.6,2893.9,0.5856]
[1644648482191,0.03367634,2894.6,2893.9,0.8856]
[1644648482390,0.03367634,2894.6,2893.9,2.74926]
[1644648482891,4.95,2894.7,2893.9,2.74926]
[1644648483092,0.00842076,2894.4,2893.9,0.8856]
[1644648483290,0.00842076,2894.4,2894.0,0.54543106]
[1644648483491,0.00842076,2894.4,2894.1,0.413]
[1644648483992,0.03732606,2894.8,2894.2,0.86365]
[1644648484192,0.54710715,2894.9,2894.3,0.413]
[1644648484193,0.001,2894.9,2894.3,0.413]
[1644648484394,4.38139874,2895.0,2894.4,3.4]
[1644648484593,4.38139874,2895.0,2894.5,0.413]
[1644648484798,4.38139874,2895.0,2894.6,0.1726]
[1644648484993,4.38139874,2895.0,2894.7,0.413]
[1644648485196,4.38139874,2895.0,2894.8,0.1726]
[1644648485439,4.33139874,2895.0,2894.9,1.05689715]
[1644648485639,0.00364808,2895.6,2895.0,3.1]
[1644648485844,0.00364808,2895.8,2895.1,0.413]
[1644648486042,0.17624808,2896.3,2895.1,1.413]
[1644648486346,0.17624808,2896.3,2895.2,3.5]
[1644648486543,0.00364808,2896.3,2895.7,0.58576012]
[1644648486742,0.51992275,2896.7,2895.8,0.413]
[1644648486943,4.95,2896.8,2895.9,3.48673795]
[1644648486944,0.00364808,2896.6,2895.9,3.48673795]
[1644648487243,4.95,2896.8,2896.0,0.413]
[1644648487244,0.00364808,2896.8,2896.0,0.413]
[1644648487442,0.1726,2897.6,2896.0,0.413]
[1644648487443,0.00364808,2897.1,2896.1,0.8631]
[1644648487643,3.9495141,2898.4,2896.1,0.8631]
[1644648487644,4.95,2897.2,2896.2,0.413]
[1644648487846,0.00364808,2897.3,2896.2,0.413]
[1644648488042,0.70153831,2897.3,2896.2,0.713]
[1644648488246,0.70153831,2897.3,2896.0,0.1726]
[1644648488247,4.95,2896.3,2896.0,0.1726]
[1644648488645,4.95,2897.0,2896.0,0.1726]
[1644648488844,4.95364808,2897.0,2896.0,0.1726]
[1644648489045,0.1726,2896.9,2896.1,0.5576815]
[1644648489296,0.00842453,2896.3,2896.1,0.5576815]
[1644648489493,0.00842453,2896.3,2896.2,0.413]
[1644648490101,0.00464808,2897.0,2896.2,0.413]
[1644648490102,0.00464808,2897.0,2896.2,3.78891331]
[1644648490298,0.00842447,2896.4,2896.2,3.78891331]
[1644648490501,0.00842447,2896.4,2896.2,0.413]
[1644648490898,0.00842447,2896.4,2896.3,3.40578734]
[1644648491100,3.5,2897.3,2896.3,3.40578734]
[1644648491101,0.00464808,2897.2,2896.5,2.85]
[1644648491297,0.00464808,2897.2,2896.3,4.68178734]
[1644648491298,0.001,2897.2,2896.6,4.65035955]
[1644648491499,0.001,2897.2,2896.7,0.8854]
[1644648491700,0.001,2897.2,2896.8,3.44339622]
[1644648491901,3.5,2897.3,2897.0,3.4]
[1644648491902,0.1548,2897.3,2897.0,3.4]
[1644648492099,0.00364808,2898.1,2897.2,3.4]
[1644648492300,0.00364808,2898.1,2897.1,4.37678293]
[1644648492301,0.00364808,2898.5,2897.3,4.97576142]
[1644648492503,4.95,2898.6,2897.4,0.413]
[1644648492698,0.00364808,2898.5,2897.5,3.69507168]
[1644648492941,4.95,2898.5,2897.6,0.413]
[1644648493347,0.00364808,2898.7,2897.7,4.23822689]
[1644648493544,5.49791702,2898.8,2897.8,0.413]
[1644648493545,4.95,2898.1,2897.8,0.413]
[1644648493745,4.95,2898.0,2897.8,0.413]
[1644648494545,4.95,2898.0,2897.3,1.72538]
[1644648495048,0.53995263,2898.1,2897.3,1.72538]
[1644648495253,4.95,2897.4,2896.9,0.413]
[1644648495450,4.95,2897.0,2896.7,0.25575549]
[1644648495653,4.95,2896.8,2896.7,0.00575549]
[1644648496147,4.95,2896.8,2895.9,0.76121264]
[1644648496148,4.95,2896.8,2896.0,3.6726]
[1644648496354,4.95,2896.8,2896.0,0.1726]
[1644648496554,0.01206403,2896.9,2896.6,0.00575558]
[1644648496790,0.00841595,2896.9,2896.6,0.00575558]
[1644648497293,0.001,2897.2,2896.5,0.413]
[1644648497594,0.001,2897.2,2896.6,0.0057412]
[1644648497595,0.00841163,2896.9,2896.6,0.0057412]
[1644648497795,0.00841163,2896.9,2896.7,0.413]
[1644648498201,4.95841163,2896.9,2896.7,0.413]
[1644648498398,0.001,2896.8,2896.7,0.413]
[1644648498597,4.95,2897.0,2896.7,0.413]
[1644648498798,0.17624808,2897.5,2896.7,0.413]
[1644648498799,0.00899191,2896.9,2896.7,0.4187411]
[1644648498996,0.00799191,2896.9,2896.7,0.4187411]
[1644648499200,0.00899191,2896.9,2896.7,0.4187411]
[1644648499399,0.00799191,2896.9,2896.7,0.4187411]
[1644648499799,0.00364808,2897.5,2896.7,0.413]
[1644648499999,0.00799191,2896.9,2896.7,0.4187411]
[1644648500641,4.95,2896.8,2896.7,0.0057411]
[1644648500845,4.951,2896.8,2896.3,0.413]
[1644648501043,1.0,2898.1,2896.3,0.413]
[1644648501044,0.001,2896.7,2896.3,0.413]
[1644648501241,0.00791001,2896.9,2896.6,0.00546852]
[1644648501445,0.00791001,2896.9,2896.7,1.96142998]
[1644648501642,0.00791001,2896.9,2896.8,3.4308058]
[1644648501842,0.00791001,2896.9,2896.8,5.3164058]
[1644648502141,0.00464808,2897.9,2896.8,5.6164058]
[1644648502342,4.98331195,2897.7,2897.0,0.86286]
[1644648502543,0.001,2897.6,2897.1,3.75557787]
[1644648502741,0.03331195,2897.7,2897.1,0.413]
[1644648503350,0.00464808,2897.8,2897.1,0.413]
[1644648503545,0.00832961,2897.5,2897.1,3.42163299]
[1644648503744,0.00832961,2897.5,2897.1,0.413]
[1644648504587,4.95464808,2897.8,2897.1,0.413]
[1644648504888,0.00841576,2897.4,2897.1,0.413]
[1644648505186,0.00841576,2897.4,2897.1,0.713]
[1644648505388,0.00841576,2897.4,2897.1,0.413]
[1644648505592,0.00841576,2897.4,2896.7,1.79458547]
[1644648505789,0.00841576,2897.4,2896.5,1.5]
[1644648505790,4.95,2897.4,2896.5,1.5]
[1644648505991,4.95,2897.4,2896.7,0.00575549]
[1644648505992,0.001,2897.3,2896.7,0.00575549]
[1644648506187,4.951,2897.3,2896.7,0.00575549]
[1644648506391,0.001,2897.2,2896.7,0.00575549]
[1644648506591,4.95,2897.0,2896.7,0.00575549]
[1644648506793,0.001,2896.9,2896.7,0.00575549]
[1644648506992,4.95,2897.3,2896.8,1.72566]
[1644648506993,0.001,2897.2,2896.8,1.72566]
[1644648507194,0.00774698,2897.0,2896.9,3.48311039]
[1644648507394,0.00364808,2897.6,2897.0,3.4]
[1644648507594,0.03098072,2897.7,2897.1,0.5854]
[1644648507794,0.03098072,2897.7,2897.1,1.5854]
[1644648508249,0.13819997,2899.4,2897.6,0.06201147]
[1644648508552,0.13819997,2899.4,2898.1,1.72464]
[1644648508746,0.1724,2900.4,2898.2,4.52349997]
[1644648508747,4.95,2900.2,2898.2,4.52349997]
[1644648508946,0.1724,2900.4,2898.2,4.52349997]
[1644648509145,4.95,2899.6,2898.7,0.5371887]
[1644648509346,4.95,2899.6,2898.8,0.5854]
[1644648509549,4.95,2899.6,2898.9,0.413]
[1644648509746,4.95,2899.6,2899.0,0.413]
[1644648510148,0.1724,2900.1,2899.0,0.713]
[1644648510448,4.95,2900.3,2899.2,0.8619975]
[1644648510649,4.95,2900.3,2899.3,4.14728299]
[1644648510848,4.95,2900.3,2899.4,0.413]
[1644648510849,0.00668376,2899.7,2899.4,0.413]
[1644648511248,4.95,2899.5,2899.4,0.413]
[1644648511795,4.95,2899.5,2898.5,0.25]
[1644648511991,0.62699132,2899.8,2898.4,0.413]
[1644648511992,0.00841446,2899.6,2898.4,0.413]
[1644648512190,4.95,2899.1,2898.4,0.413]
[1644648512391,0.00841446,2899.6,2898.4,0.413]
[1644648512594,0.00841446,2899.6,2898.5,5.39704]
[1644648512791,0.00841446,2899.6,2898.6,0.413]
[1644648512994,0.1724,2899.7,2898.8,0.86207]
[1644648513196,0.00841471,2899.2,2898.9,0.413]
[1644648513395,0.03365378,2899.6,2899.0,2.75]
[1644648513599,0.03365378,2899.6,2899.3,0.61793681]
[1644648513794,0.03365378,2899.6,2899.3,0.713]
[1644648513995,0.03465378,2899.6,2899.3,0.413]
[1644648514198,0.001,2899.6,2899.3,0.413]
[1644648514598,4.95,2899.4,2899.3,0.13006891]
[1644648514797,4.951,2899.4,2898.8,0.63890948]
[1644648514996,3.5,2899.6,2898.6,0.413]
[1644648514997,0.001,2899.3,2898.6,0.413]
[1644648515197,3.5,2899.6,2898.6,0.413]
[1644648515198,4.95,2899.1,2898.6,0.413]
[1644648515445,0.001,2899.0,2898.6,0.413]
[1644648515843,0.00841404,2899.3,2898.6,0.413]
[1644648515844,4.95841404,2899.3,2898.7,0.86232]
[1644648516043,0.001,2899.2,2898.7,0.86232]
[1644648516647,0.001,2899.5,2898.7,1.46232]
[1644648516849,0.00841404,2899.3,2898.7,1.46232]
[1644648517052,0.00841404,2899.3,2898.8,0.5854]
[1644648517448,0.00841404,2899.3,2898.9,3.64664804]
[1644648517650,0.001,2899.5,2899.0,2.30966]
[1644648517855,0.001,2899.5,2899.2,2.361975]
[1644648518049,2.6369,2900.9,2899.3,3.4]
[1644648518255,0.1724,2901.1,2899.4,3.5]
[1644648518452,4.95,2901.2,2899.5,0.413]
[1644648518650,4.6513,2901.6,2899.6,3.5]
[1644648518854,4.6513,2901.6,2899.9,0.86184]
[1644648518855,4.95,2900.2,2899.9,0.86184]
[1644648519055,4.95,2900.4,2900.0,0.413]
[1644648519295,0.1724,2901.2,2900.0,0.413]
[1644648519296,4.95,2900.8,2900.1,0.52611495]
[1644648519496,4.95,2900.9,2900.1,1.53911495]
[1644648519698,4.7044,2901.9,2900.1,1.53911495]
[1644648519898,5.0074,2902.2,2900.1,1.53911495]
[1644648519899,4.95,2901.7,2900.3,0.86186]
[1644648520103,0.0126104,2902.6,2900.3,0.86186]
[1644648520104,4.95,2900.8,2900.4,0.413]
[1644648520503,4.95,2900.8,2900.6,0.63043552]
[1644648520702,4.95,2900.8,2900.4,0.413]
[1644648520901,4.95,2900.8,2900.4,0.3]
[1644648521101,4.95,2900.8,2900.3,1.16186]
[1644648521102,4.95,2900.8,2900.3,1.46186]
[1644648521305,0.1723,2901.5,2900.4,0.413]
[1644648521506,2.4658104,2902.6,2900.8,0.8617]
[1644648521507,0.1723,2902.4,2900.8,0.8617]
[1644648521704,0.03374803,2901.1,2900.9,0.3]
[1644648521901,4.803e-05,2901.1,2900.9,1.3]
[1644648522101,9.4449141,2903.1,2901.0,0.5853]
[1644648522102,4.95,2901.8,2901.0,0.5853]
[1644648522300,4.95,2901.8,2901.0,0.8853]
[1644648522702,4.95,2901.8,2901.3,0.86149]
[1644648522945,0.82733887,2902.5,2901.5,0.61485077]
[1644648523144,4.95,2901.7,2901.6,0.413]
[1644648523346,0.001,2901.7,2901.6,0.713]
[1644648523547,0.1723,2902.5,2901.6,0.713]
[1644648523548,0.00361944,2902.4,2901.6,0.713]
[1644648523749,0.00361944,2902.4,2901.7,1.72274]
[1644648524051,0.00361944,2902.4,2900.9,6.22269]
[1644648524052,1.78075122,2901.4,2900.7,0.86175]
[1644648524248,4.95,2900.8,2899.8,5.7625]
[1644648524447,0.001,2900.7,2899.9,3.5]
[1644648524647,0.001,2900.7,2900.2,0.71515568]
[1644648524648,0.00361944,2900.7,2900.2,0.71515568]
[1644648524852,0.00361944,2900.8,2900.2,1.72351]
[1644648525049,0.00361944,2900.8,2900.3,0.1723]
[1644648525050,0.001,2900.8,2900.3,0.1723]
[1644648525249,0.001,2900.8,2900.4,0.413]
[1644648525649,0.00844143,2901.2,2900.5,0.1723]
[1644648525852,0.00844143,2901.2,2900.6,0.413]
[1644648526050,4.95,2900.7,2900.6,0.413]
[1644648526350,4.951,2900.7,2900.6,0.413]
[1644648526553,0.001,2900.7,2900.6,0.413]
[1644648527004,0.001,2900.7,2900.6,1.27475]
[1644648527203,0.001,2900.7,2900.6,1.87475]
[1644648527407,3.5,2900.8,2900.7,3.0]
[1644648527605,0.00361944,2901.3,2900.7,0.413]
[1644648527809,4.95,2901.5,2900.7,1.5853]
[1644648527810,0.00809377,2901.2,2900.7,1.5853]
[1644648528007,0.00809377,2901.2,2900.7,0.413]
[1644648528209,0.00809377,2901.2,2900.7,1.413]
[1644648528407,0.00809377,2901.2,2900.7,0.413]
[1644648528607,1.78437066,2901.4,2900.7,1.413]
[1644648528808,0.00809442,2901.2,2900.8,0.0060686]
[1644648529007,0.00809442,2901.2,2901.0,0.68596755]
[1644648529213,0.00809442,2901.2,2901.1,0.413]
[1644648529608,4.95809442,2901.2,2900.8,0.0060686]
[1644648529808,1.78075122,2901.4,2900.6,0.1723]
[1644648529809,4.95,2900.9,2900.6,0.1723]
[1644648530007,4.95,2900.8,2900.6,0.1723]
[1644648530209,4.95,2900.8,2900.5,0.413]
[1644648530645,0.5903108,2901.3,2900.5,0.413]
[1644648530846,4.95,2900.6,2900.5,0.413]
[1644648531450,0.00844246,2901.2,2900.5,0.413]
[1644648531647,4.95,2901.1,2900.5,0.413]
[1644648531850,0.00844246,2901.2,2900.5,0.413]
[1644648532047,0.00844246,2901.2,2900.5,0.713]
[1644648532246,0.58186791,2901.3,2900.5,0.713]
[1644648532446,0.00361944,2901.3,2900.5,1.013]
[1644648532650,0.00844235,2901.2,2900.7,0.00606881]
[1644648532848,0.00844235,2901.2,2900.8,0.413]
[1644648533046,0.00844235,2901.2,2900.9,3.76632806]
[1644648533247,0.00844235,2901.2,2901.0,0.413]
[1644648533547,0.001,2901.3,2901.0,1.713]
[1644648533747,0.0066275,2901.2,2901.0,1.713]
[1644648533946,4.9566275,2901.2,2901.0,1.713]
[1644648534196,0.001,2901.1,2901.0,1.713]
[1644648534398,0.001,2901.1,2901.0,0.713]
[1644648534695,1.78075122,2901.4,2900.9,0.07975227]
[1644648534696,0.001,2901.3,2900.9,0.07975227]
[1644648534894,0.001,2901.3,2901.0,0.413]
[1644648534895,0.0066275,2901.2,2901.0,0.413]
[1644648535899,0.001,2901.3,2901.0,0.413]
[1644648536100,0.00662762,2901.2,2901.0,0.413]
[1644648536300,0.00662762,2901.2,2901.0,0.713]
[1644648536902,0.00662762,2901.2,2901.0,1.713]
[1644648537101,0.001,2901.3,2901.0,1.713]
[1644648537301,0.00844792,2901.2,2901.0,1.89138496]
[1644648537705,0.00844792,2901.2,2901.0,0.89138496]
[1644648537949,3.30844792,2901.2,2901.0,1.89138496]
[1644648538147,0.001,2901.1,2901.0,0.89138496]
[1644648538347,3.3,2901.2,2901.0,1.8853]
[1644648538549,3.3,2901.2,2901.0,0.89138496]
[1644648538550,0.00844792,2901.2,2901.0,0.89138496]
[1644648538746,0.00844792,2901.2,2901.0,1.89138496]
[1644648538949,1.78075122,2901.4,2901.1,2.6]
[1644648539249,0.03378323,2902.0,2901.5,0.86134]
[1644648539457,5.1223,2902.9,2901.6,0.413]
[1644648539458,0.00361944,2902.4,2901.6,0.413]
[1644648539648,4.95,2902.7,2901.6,0.5853]
[1644648540052,0.00361944,2902.6,2901.6,0.5853]
[1644648540250,9.2724,2903.4,2901.6,0.413]
[1644648540251,4.95,2902.2,2901.6,0.413]
[1644648540451,4.95,2901.7,2901.6,0.413]
[1644648540652,4.95,2901.7,2901.1,1.413]
[1644648540849,4.95,2901.5,2901.1,0.413]
[1644648541049,4.95,2901.7,2901.1,0.413]
[1644648541248,0.00662128,2902.0,2901.1,0.413]
[1644648541450,4.95,2901.5,2901.1,0.413]
[1644648542105,0.00845644,2901.4,2901.2,0.8616]
[1644648542301,4.95845644,2901.4,2901.2,0.8616]
[1644648542504,4.95845644,2901.4,2901.0,0.00613479]
[1644648542703,4.95,2901.1,2901.0,0.00613479]
[1644648543106,4.95,2901.1,2900.2,0.62238514]
[1644648543307,4.95,2900.8,2900.0,0.413]
[1644648543606,0.00845616,2901.3,2900.0,0.413]
[1644648543607,4.951,2900.7,2900.0,0.413]
[1644648543807,0.001,2900.6,2900.0,0.713]
[1644648544008,0.001,2900.6,2900.1,0.861713]
[1644648544207,0.5965128,2901.1,2900.2,0.413]
[1644648544408,4.95,2900.8,2900.2,0.413]
[1644648544611,4.901,2900.7,2900.2,0.41913659]
[1644648544805,0.00361944,2901.0,2900.2,0.41913659]
[1644648544806,4.90461944,2901.0,2900.2,0.41913659]
[1644648545006,0.00845445,2901.3,2900.2,0.41913659]
[1644648545007,4.901,2901.2,2900.2,3.86568659]
[1644648545208,0.00361944,2901.1,2900.5,0.86172]
[1644648545453,0.13819997,2901.7,2900.5,0.86172]
[1644648545454,4.901,2900.8,2900.5,0.86172]
[1644648546044,0.00845536,2901.3,2900.6,0.00613574]
[1644648546343,4.901,2901.0,2900.6,0.00613574]
[1644648546544,0.00845536,2901.3,2900.7,2.13634]
[1644648546746,0.00361944,2901.6,2900.9,0.3]
[1644648546946,4.901,2901.2,2901.0,0.413]
[1644648547345,0.00824856,2901.3,2901.0,0.413]
[1644648547346,4.90924856,2901.3,2901.0,0.713]
[1644648547949,4.901,2901.3,2901.0,0.713]
[1644648548151,4.90924936,2901.3,2901.0,0.71844463]
[1644648548351,4.901,2901.1,2901.0,0.71844463]
[1644648548551,4.901,2901.1,2901.0,1.16709463]
[1644648548951,4.901,2901.1,2901.0,0.86709463]
[1644648549196,4.901,2901.1,2901.0,0.86165]
[1644648549396,0.00824913,2901.3,2901.0,0.86165]
[1644648549596,4.901,2901.1,2901.0,0.86165]
[1644648549898,4.902,2901.1,2901.0,0.86165]
[1644648550097,0.001,2901.1,2901.0,1.16165]
[1644648550296,3.3,2901.3,2901.0,1.46165]
[1644648550500,3.3,2901.3,2901.0,1.87465]
[1644648550501,0.001,2901.2,2901.0,1.87465]
[1644648551501,0.001,2901.2,2901.0,2.87465]
[1644648551701,0.001,2901.2,2899.8,3.33562959]
[1644648551702,4.901,2901.2,2900.4,0.25]
[1644648551899,0.001,2901.1,2901.0,0.00490984]
[1644648552100,4.901,2901.1,2901.0,0.00490984]
[1644648552299,4.902,2901.1,2901.0,0.00490984]
[1644648552798,4.902,2901.1,2900.4,0.3]
[1644648553048,0.001,2901.0,2900.9,0.00490992]
[1644648553253,0.00361944,2901.0,2900.9,0.00490992]
[1644648553450,0.00808869,2901.3,2900.9,0.00490992]
[1644648553851,4.901,2901.1,2900.7,1.013]
[1644648554150,0.001,2901.0,2900.8,1.03379572]
[1644648554349,0.001,2901.0,2900.7,0.6]
[1644648554549,0.0081249,2901.3,2900.7,0.6]
[1644648554550,0.0081249,2901.3,2901.1,1.56359363]
[1644648554751,4.901,2901.2,2901.1,1.56359363]
[1644648555351,0.00812502,2901.3,2901.1,1.56359363]
[1644648555951,0.00812502,2901.3,2901.1,2.16359363]
[1644648556149,0.00812502,2901.3,2901.1,2.78549788]
[1644648556350,0.00362833,2902.0,2901.1,2.16359363]
[1644648556552,0.00662104,2901.3,2901.2,3.60495202]
[1644648556795,0.00662104,2901.3,2901.2,1.0]
[1644648556995,0.00662104,2901.3,2901.1,2.16359363]
[1644648557399,4.901,2901.3,2901.1,3.16359363]
[1644648557600,4.901,2901.3,2901.1,1.56359363]
[1644648557802,4.90912177,2901.3,2901.1,2.16359363]
[1644648557998,0.00812177,2901.3,2901.1,2.16359363]
[1644648558799,0.17592833,2902.2,2901.2,4.47500978]
[1644648558800,4.901,2901.9,2901.2,4.47500978]
[1644648559000,4.90912177,2901.3,2901.1,1.56359363]
[1644648559801,0.001,2901.2,2901.1,1.56359363]
[1644648561247,0.40498424,2901.2,2901.1,1.56359363]
[1644648561452,0.001,2901.2,2901.1,1.56359363]
[1644648561651,0.406878,2901.2,2901.1,2.61126938]
[1644648562553,5.307878,2901.2,2901.1,2.61126938]
[1644648562754,5.30801895,2901.2,2901.1,2.61126938]
[1644648564693,0.40701895,2901.2,2901.1,2.61126938]
[1644648564891,0.40601895,2901.2,2901.1,2.61126938]
[1644648565695,5.30701895,2901.2,2901.1,2.61126938]
[1644648565894,5.30701895,2901.2,2901.1,8.25066505]
[1644648565895,0.001,2901.2,2901.1,8.25066505]
[1644648566093,0.00362833,2901.7,2901.1,8.42296505]
[1644648566296,0.00812224,2901.3,2901.2,2.04767575]
[1644648566493,0.00812224,2901.3,2901.2,2.76067575]
[1644648566893,0.00812224,2901.3,2901.2,3.33192045]
[1644648567094,0.6370141,2902.4,2901.3,0.00811628]
[1644648567294,8.30956992,2902.6,2901.4,1.46067575]
[1644648567295,4.901,2901.5,2901.4,1.46067575]
[1644648567494,5.20336619,2901.5,2901.4,1.34767575]
[1644648567693,5.20336619,2901.5,2901.4,1.64767575]
[1644648567694,0.30646619,2901.5,2901.4,1.64767575]
[1644648567952,4.7975,2901.5,2901.4,1.64767575]
[1644648568550,4.7975,2901.5,2901.4,1.04767575]
[1644648568750,4.7975,2901.5,2901.3,0.00811628]
[1644648568751,5.7975,2901.5,2901.3,0.00811628]
[1644648568950,4.7975,2901.5,2901.3,0.00811628]
[1644648569950,0.00362796,2901.9,2901.4,0.69517171]
[1644648569951,4.7975,2901.8,2901.4,0.69517171]
[1644648570153,4.7975,2901.8,2901.3,0.42111628]
[1644648570351,4.7975,2901.8,2901.3,0.72111628]
[1644648570654,0.6370141,2902.1,2901.3,0.42111628]
[1644648570853,4.7975,2901.4,2901.3,0.72111628]
[1644648571052,4.7975,2901.4,2901.3,1.02111628]
[1644648571252,4.7975,2901.4,2901.3,0.42111628]
[1644648571696,4.7975,2901.4,2901.3,0.00811628]
[1644648572299,4.7985,2901.4,2901.3,0.00811628]
[1644648572498,4.7985,2901.4,2901.1,1.56902416]
[1644648572697,4.7975,2901.2,2901.1,1.56902416]
[1644648572896,4.7985,2901.2,2901.1,1.56902416]
[1644648573100,4.7985,2901.2,2901.1,1.56359363]
[1644648573805,0.001,2901.2,2901.1,1.56359363]
[1644648574001,0.00660984,2901.4,2901.1,1.56359363]
[1644648574203,4.80410984,2901.4,2901.1,1.56359363]
[1644648574401,0.001,2901.3,2901.1,1.56359363]
[1644648574805,0.00661007,2901.4,2901.1,2.16359363]
[1644648575004,0.00661007,2901.4,2901.2,0.64801207]
[1644648575203,4.79431199,2901.4,2901.2,0.64801207]
[1644648575447,0.001,2901.3,2901.1,1.56359363]
[1644648575845,4.79431199,2901.2,2901.1,2.16359363]
[1644648576041,4.79431199,2901.2,2901.1,2.42520363]
[1644648576042,4.79531199,2901.2,2901.1,2.42520363]
[1644648576242,4.79531199,2901.2,2901.1,3.02520363]
[1644648576643,4.79531199,2901.2,2901.1,1.56359363]
[1644648576842,4.79531199,2901.2,2901.1,2.16359363]
[1644648577643,0.001,2901.2,2901.1,2.16359363]
[1644648577843,4.79431199,2901.2,2901.1,2.16359363]
[1644648578048,4.79531199,2901.2,2901.1,2.16359363]
[1644648578450,4.79531199,2901.2,2901.1,1.56359363]
[1644648585857,4.74531199,2901.2,2901.1,1.56359363]
[1644648587298,6.47401414,2901.2,2901.1,1.56359363]
[1644648587497,4.74531199,2901.2,2901.1,1.56359363]
[1644648588102,4.74531199,2901.2,2901.1,2.65112853]
[1644648588103,5.11455849,2901.2,2901.1,2.65112853]
[1644648589502,0.3692465,2901.2,2901.1,2.65112853]
[1644648589703,5.06455849,2901.2,2901.1,2.65112853]
[1644648591571,8.97239263,2902.3,2901.1,2.65112853]
[1644648591572,0.00845633,2901.5,2901.1,2.95112853]
[1644648591767,0.00845633,2901.5,2901.2,3.913]
[1644648591966,0.00845633,2901.5,2901.2,2.57455]
[1644648592166,0.00845633,2901.5,2901.2,0.413]
[1644648592366,0.00845633,2901.5,2901.3,0.65792589]
[1644648592567,0.58602087,2902.0,2901.1,2.39381952]
[1644648592767,0.58602087,2902.0,2901.1,2.22151952]
[1644648592768,0.00662518,2901.5,2901.1,2.22151952]
[1644648592967,0.00662518,2901.5,2901.1,1.86359363]
[1644648593168,0.00662518,2901.5,2901.2,0.83022589]
[1644648593366,0.00662518,2901.5,2901.3,0.413]
[1644648593766,0.64800318,2902.4,2901.3,0.413]
[1644648593968,0.0066253,2901.5,2901.2,0.1723]
[1644648594894,0.8249376,2902.2,2901.2,0.1723]
[1644648595095,0.8249376,2902.2,2901.1,1.56359363]
[1644648595294,0.00848187,2901.5,2901.2,0.00625663]
[1644648596099,0.53236597,2902.1,2901.5,0.00430753]
[1644648596502,0.53136597,2902.1,2901.5,0.00430753]
[1644648596902,0.53236597,2902.1,2901.5,0.00430753]
[1644648598059,0.001,2902.1,2901.5,0.00430753]
[1644648598260,1.0,2902.2,2901.5,0.00430753]
[1644648598458,0.001,2902.1,2901.5,0.00430753]
[1644648598658,0.8239376,2902.3,2901.5,0.00430753]
[1644648598959,0.17593442,2902.3,2901.5,0.00430753]
[1644648599159,0.00363442,2902.3,2901.5,0.00430753]
[1644648599959,5.64800318,2902.1,2901.5,0.00430753]
[1644648600158,0.65748484,2902.0,2901.5,0.00430753]
[1644648600462,0.58636072,2901.9,2901.5,0.00430753]
[1644648600661,0.58736072,2901.9,2901.5,0.00430753]
[1644648600860,0.001,2901.9,2901.5,0.00430753]
[1644648601063,0.1733,2902.2,2901.5,0.00430753]
[1644648601261,0.6526376,2902.5,2901.6,0.1723]
[1644648601463,0.00848179,2901.8,2901.5,0.00430753]
[1644648602294,0.5173691,2901.9,2901.5,0.00430753]
[1644648602595,0.00848182,2901.8,2901.5,0.00430753]
[1644648603001,0.00948182,2901.8,2901.5,0.00430753]
[1644648603499,5.0,2901.7,2901.5,0.00430753]
[1644648603700,5.0,2901.7,2901.3,0.00627759]
[1644648603701,3.4,2901.5,2901.3,0.00627759]